fUST/lending_fUST_20250623
["ID","MTS","AMOUNT","RATE_DAILY","PERIOD"]
[367170754,1750686154615,-168.66091166,0.00026383,30]
[367170755,1750686154644,-150.05832723,0.00026383,120]
[367170756,1750686154673,-200.00848015,0.00026383,30]
[367170757,1750686154703,-164.01603827,0.00026383,120]
[367170758,1750686154732,-640.332402,0.00026383,120]
[367170759,1750686154760,-156.50205717,0.00026383,120]
[367170760,1750686154789,-7100.87,0.00026383,60]
[367170761,1750686154817,-1266057.82909942,0.00026383,20]
[367170762,1750686179651,-2500000.0,0.00026383,20]
[367170763,1750686183754,-1889866.77024527,0.00026383,20]
[367170764,1750686183782,-500.0,0.00026383,10]
[367170765,1750686183810,-500.0,0.00026383,10]
[367170766,1750686183838,-500.0,0.00026383,10]
[367170767,1750686183865,-500.0,0.00026383,10]
[367170768,1750686183892,-500.0,0.00026383,10]
[367170769,1750686183920,-500.0,0.00026383,10]
[367170770,1750686183946,-500.0,0.00026383,10]
[367170771,1750686183976,-500.0,0.00026383,10]
[367170772,1750686184006,-500.0,0.00026383,10]
[367170773,1750686184034,-445.01116852,0.00026383,10]
[367170774,1750686184063,-500.0,0.00026383,10]
[367170775,1750686184089,-161.91,0.00026383,120]
[367170776,1750686184116,-250.0,0.00026383,10]
[367170777,1750686184142,-250.0,0.00026383,10]
[367170778,1750686184168,-250.0,0.00026383,10]
[367170779,1750686184194,-493.578406,0.00026383,10]
[367170780,1750686184220,-1000.0,0.00026383,30]
[367170781,1750686184252,-1000.0,0.00026383,30]
[367170782,1750686184278,-1559.29164,0.00026383,30]
[367170783,1750686184304,-2000.0,0.00026383,30]
[367170784,1750686184331,-2000.0,0.00026383,30]
[367170785,1750686184357,-2000.0,0.00026383,30]
[367170786,1750686184384,-2000.0,0.00026383,30]
[367170787,1750686184410,-2000.0,0.00026383,30]
[367170788,1750686184650,-519.299999,0.00026383,30]
[367170789,1750686203415,-7178.0,0.00022,10]
[367170790,1750686203443,-213.63163053,0.00022,10]
[367170791,1750686203470,-846.53928378,0.00022,10]
[367170792,1750686203519,-200.0,0.00022191,10]
[367170793,1750686203546,-200.0,0.00022191,10]
[367170794,1750686203574,-200.0,0.00022191,10]
[367170795,1750686203603,-200.0,0.00022191,10]
[367170796,1750686203630,-200.0,0.00022191,10]
[367170797,1750686203657,-200.0,0.00022191,10]
[367170798,1750686203684,-240.604756,0.00022191,10]
[367170799,1750686203763,-1356.0,0.00023,14]
[367170800,1750686203866,-885.10818461,0.00024,14]
[367170801,1750686203893,-151.0,0.00024,14]
[367170802,1750686203921,-160.0,0.00024,10]
[367170803,1750686203948,-160.0,0.00024,10]
[367170804,1750686203975,-230.18214666,0.00024,10]
[367170805,1750686204011,-160.0,0.00024,10]
[367170806,1750686204037,-836.70095952,0.00024,10]
[367170807,1750686204063,-524.09497732,0.00024,10]
[367170808,1750686204121,-200.0,0.0002442,10]
[367170809,1750686204148,-165.59149544,0.00024657,30]
[367170810,1750686204187,-500.0,0.00024658,15]
[367170811,1750686204213,-500.0,0.00024658,15]
[367170812,1750686204242,-500.0,0.00024658,30]
[367170813,1750686204268,-500.0,0.00024658,10]
[367170814,1750686204292,-500.0,0.00024658,15]
[367170815,1750686204319,-500.0,0.00024658,10]
[367170816,1750686204344,-500.0,0.00024658,10]
[367170817,1750686204368,-500.0,0.00024658,15]
[367170818,1750686204395,-500.0,0.00024658,15]
[367170819,1750686204420,-500.0,0.00024658,30]
[367170820,1750686204445,-500.0,0.00024658,10]
[367170821,1750686204470,-500.0,0.00024658,10]
[367170822,1750686204499,-500.0,0.00024658,30]
[367170823,1750686204525,-500.0,0.00024658,30]
[367170824,1750686204551,-500.0,0.00024658,10]
[367170825,1750686204577,-500.0,0.00024658,30]
[367170826,1750686204604,-500.0,0.00024658,30]
[367170827,1750686204631,-179.06,0.00024658,10]
[367170828,1750686204658,-200.0,0.00024658,15]
[367170829,1750686204686,-4469.8159397,0.0002483,120]
[367170830,1750686204727,-154.0,0.00025,120]
[367170831,1750686204756,-2272.12808966,0.00025,21]
[367170832,1750686204784,-200.0,0.00025058,30]
[367170833,1750686204811,-200.0,0.00025058,30]
[367170834,1750686204836,-200.0,0.00025058,30]
[367170835,1750686204890,-200.0,0.00025669,120]
[367170836,1750686204929,-200.0,0.00025839,120]
[367170837,1750686204958,-500.0,0.00026,120]
[367170838,1750686204986,-12958.68394827,0.00026,30]
[367170839,1750686205023,-160.0,0.00026,30]
[367170840,1750686205049,-213.63163053,0.00026,30]
[367170841,1750686205076,-846.53928378,0.00026,30]
[367170842,1750686205101,-160.0,0.00026,30]
[367170843,1750686205127,-230.18214666,0.00026,30]
[367170844,1750686205152,-160.0,0.00026,30]
[367170845,1750686205179,-836.70095952,0.00026,30]
[367170846,1750686205204,-524.09497732,0.00026,30]
[367170847,1750686205231,-200.0,0.00026019,120]
[367170848,1750686205258,-200.0,0.0002602,15]
[367170849,1750686205297,-200.0,0.00026239,120]
[367170850,1750686205336,-200.0,0.00026548,120]
[367170851,1750686205376,-1729.76,0.000266,31]
[367170852,1750686205406,-1729.76,0.000266,31]
[367170853,1750686205631,-1729.76,0.000266,31]
[367170854,1750686205664,-1729.76,0.000266,31]
[367170855,1750686205695,-1729.76,0.000266,31]
[367170856,1750686205728,-1729.76,0.000266,31]
[367170857,1750686205765,-1729.76,0.000266,31]
[367170858,1750686205799,-1729.76,0.000266,31]
[367170859,1750686205832,-1729.76,0.000266,31]
[367170860,1750686205863,-1729.76,0.000266,31]
[367170861,1750686205893,-1729.76,0.000266,31]
[367170862,1750686205923,-1729.76,0.000266,31]
[367170863,1750686205948,-200.0,0.00026616,120]
[367170864,1750686205974,-200.0,0.00026724,120]
[367170865,1750686206016,-1100.0,0.00027,30]
[367170866,1750686206043,-1100.0,0.00027,30]
[367170867,1750686206068,-1100.0,0.00027,30]
[367170868,1750686206096,-1100.0,0.00027,30]
[367170869,1750686206122,-1100.0,0.00027,30]
[367170870,1750686206147,-1100.0,0.00027,30]
[367170871,1750686206174,-1100.0,0.00027,30]
[367170872,1750686206198,-1100.0,0.00027,30]
[367170873,1750686206224,-1100.0,0.00027,30]
[367170874,1750686206252,-1100.0,0.00027,30]
[367170875,1750686206277,-1100.0,0.00027,30]
[367170876,1750686206302,-500.0,0.00027,30]
[367170877,1750686206328,-1100.0,0.00027,30]
[367170878,1750686206353,-500.0,0.00027,30]
[367170879,1750686206378,-1100.0,0.00027,30]
[367170880,1750686206408,-500.0,0.00027,30]
[367170881,1750686206433,-500.0,0.00027,30]
[367170882,1750686206461,-1614.86384002,0.00027,30]
[367170883,1750686206487,-500.0,0.00027,30]
[367170884,1750686206515,-500.0,0.00027,30]
[367170885,1750686206546,-500.0,0.00027,30]
[367170886,1750686206575,-509.71080612,0.00027,30]
[367170887,1750686206602,-500.0,0.00027,30]
[367170888,1750686206628,-500.0,0.00027,30]
[367170889,1750686206655,-500.0,0.00027,30]
[367170890,1750686206682,-500.0,0.00027,30]
[367170891,1750686206709,-504.42048261,0.00027,30]
[367170892,1750686206736,-500.0,0.00027,30]
[367170893,1750686206764,-500.0,0.00027,30]
[367170894,1750686206791,-500.59879245,0.00027,30]
[367170895,1750686206820,-500.0,0.00027,30]
[367170896,1750686206847,-582.13383437,0.00027,30]
[367170897,1750686206874,-1112.43451,0.00027,120]
[367170898,1750686206900,-600.0,0.00027,30]
[367170899,1750686206927,-500.0,0.00027,30]
[367170900,1750686206954,-500.0,0.00027,30]
[367170901,1750686206981,-500.0,0.00027,30]
[367170902,1750686207014,-500.0,0.00027,30]
[367170903,1750686207041,-611.96083666,0.00027,30]
[367170904,1750686207068,-500.0,0.00027,30]
[367170905,1750686207094,-500.0,0.00027,30]
[367170906,1750686207121,-500.0,0.00027,30]
[367170907,1750686207148,-500.0,0.00027,30]
[367170908,1750686207174,-500.0,0.00027,30]
[367170909,1750686207202,-500.0,0.00027,30]
[367170910,1750686207227,-500.0,0.00027,30]
[367170911,1750686207255,-500.0,0.00027,30]
[367170912,1750686207281,-500.0,0.00027,30]
[367170913,1750686207307,-500.0,0.00027,30]
[367170914,1750686207336,-500.0,0.00027,30]
[367170915,1750686207367,-500.0,0.00027,30]
[367170916,1750686207396,-500.0,0.00027,30]
[367170917,1750686207422,-500.0,0.00027,30]
[367170918,1750686207449,-500.0,0.00027,30]
[367170919,1750686207476,-500.0,0.00027,30]
[367170920,1750686207503,-500.0,0.00027,30]
[367170921,1750686207528,-500.0,0.00027,30]
[367170922,1750686207555,-500.0,0.00027,30]
[367170923,1750686207581,-500.0,0.00027,30]
[367170924,1750686207606,-500.0,0.00027,30]
[367170925,1750686207632,-500.0,0.00027,30]
[367170926,1750686207658,-849.85977018,0.00027,30]
[367170927,1750686207684,-500.0,0.00027,30]
[367170928,1750686207711,-500.0,0.00027,30]
[367170929,1750686207736,-613.6773564,0.00027,30]
[367170930,1750686207765,-648.53086622,0.00027,30]
[367170931,1750686207792,-160.0,0.00027,10]
[367170932,1750686207819,-160.0,0.00027,30]
[367170933,1750686207847,-160.0,0.00027,30]
[367170934,1750686207874,-230.18214666,0.00027,30]
[367170935,1750686207900,-160.0,0.00027,30]
[367170936,1750686207928,-836.70095952,0.00027,30]
[367170937,1750686207954,-524.09497732,0.00027,30]
[367170938,1750686207990,-8475.64850661,0.00027183,15]
[367170939,1750686208022,-5000.0,0.00027183,14]
[367170940,1750686208049,-5000.0,0.00027183,12]
[367170941,1750686208075,-5000.0,0.00027183,14]
[367170942,1750686208102,-5000.0,0.00027183,10]
[367170943,1750686208127,-5000.0,0.00027246,11]
[367170944,1750686208152,-5000.0,0.00027246,14]
[367170945,1750686208177,-5000.0,0.00027246,12]
[367170946,1750686208202,-5000.0,0.00027246,12]
[367170947,1750686208227,-5000.0,0.00027246,10]
[367170948,1750686208260,-408.48398267,0.00027397,120]
[367170949,1750686208290,-226.0852338,0.00027397,120]
[367170950,1750686208316,-1224.02,0.00027467,13]
[367170951,1750686208341,-822.76460168,0.000275,30]
[367170952,1750686208366,-200.0,0.00027532,120]
[367170953,1750686208392,-1224.02,0.00027567,25]
[367170954,1750686208569,-206.0,0.0002757,30]
[367170955,1750686208597,-200.0,0.0002762,19]
[367170956,1750686208623,-1100.0,0.00027658,30]
[367170957,1750686208650,-1100.0,0.00027658,30]
[367170958,1750686208675,-1100.0,0.00027658,30]
[367170959,1750686208701,-1100.0,0.00027658,30]
[367170960,1750686208726,-1100.0,0.00027658,30]
[367170961,1750686208754,-1100.0,0.00027658,30]
[367170962,1750686208780,-1100.0,0.00027658,30]
[367170963,1750686208806,-1100.0,0.00027658,30]
[367170964,1750686208833,-1100.0,0.00027658,30]
[367170965,1750686208858,-1100.0,0.00027658,30]
[367170966,1750686208884,-1100.0,0.00027658,30]
[367170967,1750686208910,-1100.0,0.00027658,30]
[367170968,1750686208935,-1100.0,0.00027658,30]
[367170969,1750686208960,-1100.0,0.00027658,30]
[367170970,1750686208985,-500.0,0.00027658,30]
[367170971,1750686209016,-500.0,0.00027658,30]
[367170972,1750686209041,-190.0,0.00027658,30]
[367170973,1750686209066,-500.0,0.00027658,30]
[367170974,1750686209093,-500.0,0.00027658,30]
[367170975,1750686209117,-500.0,0.00027658,30]
[367170976,1750686209140,-500.0,0.00027658,30]
[367170977,1750686209166,-500.0,0.00027658,30]
[367170978,1750686209191,-500.0,0.00027658,30]
[367170979,1750686209217,-500.0,0.00027658,30]
[367170980,1750686209242,-500.0,0.00027658,30]
[367170981,1750686209269,-500.0,0.00027658,30]
[367170982,1750686209295,-500.0,0.00027658,30]
[367170983,1750686209321,-500.0,0.00027658,30]
[367170984,1750686209346,-500.0,0.00027658,30]
[367170985,1750686209371,-500.0,0.00027658,30]
[367170986,1750686209395,-500.0,0.00027658,30]
[367170987,1750686209420,-293.85068442,0.00027658,30]
[367170988,1750686209446,-500.36684427,0.00027658,30]
[367170989,1750686209470,-500.0,0.00027658,30]
[367170990,1750686209497,-500.0,0.00027658,30]
[367170991,1750686209524,-500.0,0.00027658,30]
[367170992,1750686209550,-508.36654091,0.00027658,30]
[367170993,1750686209576,-500.0,0.00027658,30]
[367170994,1750686209603,-500.0,0.00027658,30]
[367170995,1750686209629,-500.0,0.00027658,30]
[367170996,1750686209656,-500.0,0.00027658,30]
[367170997,1750686209683,-500.0,0.00027658,30]
[367170998,1750686209709,-500.0,0.00027658,30]
[367170999,1750686209736,-500.0,0.00027658,30]
[367171000,1750686209764,-500.0,0.00027658,30]
[367171001,1750686209792,-500.0,0.00027658,30]
[367171002,1750686209819,-500.0,0.00027658,30]
[367171003,1750686209846,-500.0,0.00027658,30]
[367171004,1750686209873,-500.0,0.00027658,30]
[367171005,1750686209899,-500.0,0.00027658,30]
[367171006,1750686209924,-500.0,0.00027658,30]
[367171007,1750686209951,-500.0,0.00027658,30]
[367171008,1750686209977,-500.0,0.00027658,30]
[367171009,1750686210005,-500.0,0.00027658,30]
[367171010,1750686210031,-500.0,0.00027658,30]
[367171011,1750686210057,-500.0,0.00027658,30]
[367171012,1750686210084,-500.0,0.00027658,30]
[367171013,1750686210110,-500.0,0.00027658,30]
[367171014,1750686210137,-500.0,0.00027658,30]
[367171015,1750686210165,-500.0,0.00027658,30]
[367171016,1750686210192,-500.0,0.00027658,30]
[367171017,1750686210221,-500.0,0.00027658,30]
[367171018,1750686210249,-500.0,0.00027658,30]
[367171019,1750686210275,-500.0,0.00027658,30]
[367171020,1750686210304,-500.0,0.00027658,30]
[367171021,1750686210334,-500.0,0.00027658,30]
[367171022,1750686210364,-500.0,0.00027658,30]
[367171023,1750686210390,-500.0,0.00027658,30]
[367171024,1750686210417,-507.77545254,0.00027658,30]
[367171025,1750686210444,-500.0,0.00027658,30]
[367171026,1750686210472,-500.0,0.00027658,30]
[367171027,1750686210502,-500.0,0.00027658,30]
[367171028,1750686210528,-500.0,0.00027658,30]
[367171029,1750686210555,-500.0,0.00027658,30]
[367171030,1750686210585,-630.27407011,0.00027658,30]
[367171031,1750686210611,-194.35501432,0.00027658,30]
[367171032,1750686210638,-1224.02,0.00027667,23]
[367171033,1750686210672,-579.0,0.00027671,14]
[367171034,1750686210697,-1224.02,0.00027767,27]
[367171035,1750686210724,-1224.02,0.00027867,25]
[367171036,1750686210751,-200.0,0.00027945,120]
[367171037,1750686210787,-1224.02,0.00027967,16]
[367171038,1750686210814,-500.0,0.00028,120]
[367171039,1750686210851,-230.18214666,0.00028,30]
[367171040,1750686210885,-160.0,0.00028,30]
[367171041,1750686210916,-836.70095952,0.00028,30]
[367171042,1750686210949,-524.09497732,0.00028,30]
[367171043,1750686210983,-524.09497732,0.00028,10]
[367171044,1750686211021,-1224.02,0.00028167,20]
[367171045,1750686211057,-200.0,0.00028203,120]
[367171046,1750686211103,-200.0,0.00028263,120]
[367171047,1750686211137,-1224.02,0.00028267,28]
[367171048,1750686211170,-1224.02,0.00028367,15]
[367171049,1750686211201,-1224.02,0.00028467,15]
[367171050,1750686211232,-1112.43451,0.000285,120]
[367171051,1750686211264,-1224.02,0.00028567,10]
[367171052,1750686211295,-167.0,0.00028767,14]
[367171053,1750686211327,-579.0,0.00028767,14]
[367171054,1750686211361,-206.0,0.0002877,30]
[367171055,1750686211390,-1224.02,0.00028867,22]
[367171056,1750686211419,-209.83047,0.00029,120]
[367171057,1750686211452,-2014.80503645,0.00029,10]
[367171058,1750686211482,-213.63163053,0.00029,120]
[367171059,1750686211514,-230.18214666,0.00029,10]
[367171060,1750686211544,-160.0,0.00029,10]
[367171061,1750686211573,-836.70095952,0.00029,10]
[367171062,1750686211603,-1333.0,0.00029041,120]
[367171063,1750686211632,-1224.02,0.00029067,15]
[367171064,1750686211663,-200.0,0.0002922,23]
[367171065,1750686211693,-1224.02,0.00029367,28]
[367171066,1750686211725,-1224.02,0.00029467,27]
[367171067,1750686211762,-1224.02,0.00029667,20]
[367171068,1750686211792,-200.0,0.00029718,120]
[367171069,1750686211823,-1224.02,0.00029767,15]
[367171070,1750686211859,-1224.02,0.00029867,14]
[367171071,1750686211891,-1224.02,0.00029967,28]
[367171072,1750686211920,-206.0,0.0002998,30]
[367171073,1750686211950,-1112.43451,0.0003,120]
[367171074,1750686211980,-401.84056144,0.0003,10]
[367171075,1750686212014,-1560.23803967,0.0003,10]
[367171076,1750686212044,-1300.0,0.0003,120]
[367171077,1750686212074,-1000.0,0.0003,120]
[367171078,1750686212106,-2000.0,0.0003,120]
[367171079,1750686212136,-70149.36969394,0.0003,30]
[367171080,1750686212167,-524.09497732,0.0003,120]
[367171081,1750686212198,-1224.02,0.00030067,29]
[367171082,1750686212230,-1224.02,0.00030167,21]
[367171083,1750686212268,-168.0,0.00030205,14]
[367171084,1750686212313,-579.0,0.00030205,14]
[367171085,1750686212358,-1224.02,0.00030267,17]
[367171086,1750686212403,-200.0,0.00030348,120]
[367171087,1750686212445,-1224.02,0.00030367,13]
[367171088,1750686212489,-200.0,0.00030433,120]
[367171089,1750686212532,-200.0,0.00030452,120]
[367171090,1750686212574,-1224.02,0.00030467,27]
[367171091,1750686212616,-160.0,0.00030505,10]
[367171092,1750686212658,-1224.02,0.00030567,16]
[367171093,1750686212703,-1729.76,0.000307,31]
[367171094,1750686212753,-1729.76,0.000307,31]
[367171095,1750686212800,-1729.76,0.000307,31]
[367171096,1750686212846,-1729.76,0.000307,31]
[367171097,1750686212893,-1729.76,0.000307,31]
[367171098,1750686212941,-1729.76,0.000307,31]
[367171099,1750686212990,-1729.76,0.000307,31]
[367171100,1750686213048,-1729.76,0.000307,31]
[367171101,1750686213098,-1729.76,0.000307,31]
[367171102,1750686213146,-1729.76,0.000307,31]
[367171103,1750686213196,-1729.76,0.000307,31]
[367171104,1750686213245,-1729.76,0.000307,31]
[367171105,1750686213299,-1729.76,0.000307,31]
[367171106,1750686213349,-1729.76,0.000307,31]
[367171107,1750686213401,-1729.76,0.000307,31]
[367171108,1750686213450,-1729.76,0.000307,31]
[367171109,1750686213498,-1729.76,0.000307,31]
[367171110,1750686213547,-1729.76,0.000307,31]
[367171111,1750686213594,-1729.76,0.000307,31]
[367171112,1750686213641,-1729.76,0.000307,31]
[367171113,1750686213690,-1729.76,0.000307,31]
[367171114,1750686213739,-1729.76,0.000307,31]
[367171115,1750686213790,-1729.76,0.000307,31]
[367171116,1750686213840,-1729.76,0.000307,31]
[367171117,1750686213882,-160.0,0.00030723,11]
[367171118,1750686213925,-1224.02,0.00030767,14]
[367171119,1750686213967,-200.0,0.0003082,28]
[367171120,1750686214009,-1224.02,0.00030867,17]
[367171121,1750686214054,-200.0,0.00030894,120]
[367171122,1750686214387,-160.0,0.00030942,12]
[367171123,1750686214451,-1224.02,0.00030967,24]
[367171124,1750686214491,-160.0,0.00031,120]
[367171125,1750686214533,-230.18214666,0.00031,120]
[367171126,1750686214577,-160.0,0.00031,120]
[367171127,1750686214618,-836.70095952,0.00031,120]
[367171128,1750686214660,-200.0,0.00031121,120]
[367171129,1750686214700,-160.0,0.0003116,13]
[367171130,1750686214741,-1224.02,0.00031167,30]
[367171131,1750686214782,-206.0,0.0003119,30]
[367171132,1750686214822,-1224.02,0.00031267,27]
[367171133,1750686214862,-1224.02,0.00031367,25]
[367171134,1750686214902,-200.0,0.00031378,120]
[367171135,1750686214943,-160.0,0.00031378,14]
[367171136,1750686214983,-1224.02,0.00031467,16]
[367171137,1750686215029,-1112.43451,0.000315,120]
[367171138,1750686215070,-1224.02,0.00031567,19]
[367171139,1750686215113,-160.0,0.00031597,15]
[367171140,1750686215154,-177.1504183,0.00031652,30]
[367171141,1750686215193,-448.382648,0.00031652,30]
[367171142,1750686215231,-1224.02,0.00031667,21]
[367171143,1750686215271,-1224.02,0.00031767,16]
[367171144,1750686215311,-160.0,0.00031815,16]
[367171145,1750686215351,-200.0,0.00031848,120]
[367171146,1750686215391,-1224.02,0.00031867,13]
[367171147,1750686215438,-1224.02,0.00031967,17]
[367171148,1750686215489,-2000.0,0.00032,120]
[367171149,1750686215548,-160.0,0.00032033,17]
[367171150,1750686215603,-1224.02,0.00032067,20]
[367171151,1750686215650,-1224.95769005,0.00032167,24]
[367171152,1750686215695,-200.0,0.0003221,120]
[367171153,1750686215741,-579.0,0.00032219,14]
[367171154,1750686215797,-160.0,0.00032251,18]
[367171155,1750686215846,-200.0,0.00032381,120]
[367171156,1750686215892,-200.0,0.00032385,120]
[367171157,1750686215938,-206.0,0.000324,30]
[367171158,1750686215984,-200.0,0.0003241,32]
[367171159,1750686216044,-200.0,0.00032445,120]
[367171160,1750686216096,-160.0,0.0003247,19]
[367171161,1750686216140,-923.50680182,0.00032603,90]
[367171162,1750686216186,-160.0,0.00032688,20]
[367171163,1750686216230,-152.0,0.00032708,15]
[367171164,1750686216283,-160.0,0.00032906,21]
[367171165,1750686216324,-202.54012809,0.00033,21]
[367171166,1750686216366,-1112.43451,0.00033,120]
[367171167,1750686216406,-1000.0,0.00033,120]
[367171168,1750686216447,-1000.0,0.00033,120]
[367171169,1750686216487,-3017.0,0.00033,120]
[367171170,1750686216535,-160.0,0.00033124,22]
[367171171,1750686216576,-200.0,0.00033134,120]
[367171172,1750686216616,-167.0,0.00033226,30]
[367171173,1750686216655,-152.0,0.00033272,15]
[367171174,1750686216696,-160.0,0.00033343,23]
[367171175,1750686216739,-200.0,0.0003336,120]
[367171176,1750686216786,-160.0,0.00033561,24]
[367171177,1750686216829,-206.0,0.0003361,30]
[367171178,1750686216873,-200.0,0.00033754,120]
[367171179,1750686216912,-152.0,0.00033836,15]
[367171180,1750686216953,-200.0,0.00033854,120]
[367171181,1750686216994,-1333.0,0.00033973,120]
[367171182,1750686217048,-2000.0,0.00034,120]
[367171183,1750686217086,-212.0,0.0003401,37]
[367171184,1750686217126,-209.83047,0.000342,120]
[367171185,1750686217164,-579.0,0.00034233,30]
[367171186,1750686217202,-179.67658215,0.00034272,12]
[367171187,1750686217240,-152.0,0.00034401,15]
[367171188,1750686217287,-1112.43451,0.000345,120]
[367171189,1750686217327,-579.0,0.00034521,30]
[367171190,1750686217365,-200.0,0.00034673,120]
[367171191,1750686217404,-1341.32310674,0.00034728,12]
[367171192,1750686217444,-1729.76,0.000348,31]
[367171193,1750686217487,-1729.76,0.000348,31]
[367171194,1750686217533,-1729.76,0.000348,31]
[367171195,1750686217576,-1729.76,0.000348,31]
[367171196,1750686217618,-1729.76,0.000348,31]
[367171197,1750686217659,-1729.76,0.000348,31]
[367171198,1750686217702,-1729.76,0.000348,31]
[367171199,1750686217746,-1729.76,0.000348,31]
[367171200,1750686217795,-1729.76,0.000348,31]
[367171201,1750686217841,-1729.76,0.000348,31]
[367171202,1750686217883,-1729.76,0.000348,31]
[367171203,1750686217926,-1729.76,0.000348,31]
[367171204,1750686217972,-1729.76,0.000348,31]
[367171205,1750686218018,-1729.76,0.000348,31]
[367171206,1750686218061,-1729.76,0.000348,31]
[367171207,1750686218105,-1729.76,0.000348,31]
[367171208,1750686218148,-1729.76,0.000348,31]
[367171209,1750686218193,-1729.76,0.000348,31]
[367171210,1750686218236,-1729.76,0.000348,31]
[367171211,1750686218286,-1729.76,0.000348,31]
[367171212,1750686218332,-1729.76,0.000348,31]
[367171213,1750686218377,-1729.76,0.000348,31]
[367171214,1750686218423,-1729.76,0.000348,31]
[367171215,1750686218468,-1729.76,0.000348,31]
[367171216,1750686218519,-206.0,0.0003482,30]
[367171217,1750686218718,-152.0,0.00034965,15]
[367171218,1750686218773,-200.0,0.00034976,120]
[367171219,1750686218822,-445.6964643,0.00035,30]
[367171220,1750686218868,-210.76803645,0.00035,30]
[367171221,1750686218910,-374.0,0.00035,120]
[367171222,1750686218950,-260.0,0.00035,14]
[367171223,1750686218992,-3017.0,0.00035,120]
[367171224,1750686219043,-479.97821524,0.00035,120]
[367171225,1750686219085,-200.0,0.00035037,120]
[367171226,1750686219128,-200.0,0.00035077,120]
[367171227,1750686219167,-500.0,0.00035475,10]
[367171228,1750686219207,-200.0,0.00035496,120]
[367171229,1750686219245,-152.0,0.00035529,15]
[367171230,1750686219290,-1112.77879462,0.00035616,30]
[367171231,1750686219331,-200.0,0.0003572,120]
[367171232,1750686219369,-200.0,0.00035851,120]
[367171233,1750686219408,-200.0,0.00035925,120]
[367171234,1750686219445,-1112.43451,0.00036,120]
[367171235,1750686219484,-1000.0,0.00036,120]
[367171236,1750686219523,-2000.0,0.00036,120]
[367171237,1750686219563,-206.0,0.0003603,30]
[367171238,1750686219601,-152.0,0.00036093,15]
[367171239,1750686219640,-167.0,0.00036247,30]
[367171240,1750686219678,-579.0,0.00036247,30]
[367171241,1750686219716,-154.0,0.000363,120]
[367171242,1750686219762,-200.0,0.00036418,120]
[367171243,1750686219805,-5000.0,0.00036522,54]
[367171244,1750686219853,-5000.0,0.00036522,58]
[367171245,1750686219893,-5000.0,0.00036522,58]
[367171246,1750686219933,-5445.65638968,0.00036538,57]
[367171247,1750686219973,-152.0,0.00036657,15]
[367171248,1750686220018,-500.0,0.00036986,15]
[367171249,1750686220058,-500.0,0.00036986,15]
[367171250,1750686220095,-500.0,0.00036986,30]
[367171251,1750686220132,-334.88,0.00036986,15]
[367171252,1750686220168,-88293.0,0.00037,14]
[367171253,1750686220206,-3017.0,0.00037,120]